bitfinex/quotes_SOLUSD_20220109
["timestamp","ask_amount","ask_price","bid_price","bid_amount"]
[1641764891046,0.25,142.44,142.35,10.7846]
[1641764891346,0.25,142.44,142.35,12.56542586]
[1641764891947,0.25,142.44,142.36,0.26]
[1641764892347,10.7845,142.45,142.36,10.794]
[1641764892549,3.0,142.44,142.36,10.794]
[1641764892748,3.26,142.44,142.36,10.794]
[1641764892946,0.25,142.43,142.36,10.794]
[1641764894149,0.25,142.43,142.36,0.26]
[1641764894449,0.25,142.43,142.35,2.03082586]
[1641764895051,0.51,142.44,142.35,2.03082586]
[1641764895850,10.5353,142.43,142.35,12.56552586]
[1641764896251,3.0,142.45,142.36,0.26]
[1641764896452,3.0,142.45,142.35,12.56552586]
[1641764896453,3.0,142.45,142.35,22.50552586]
[1641764896654,3.0,142.45,142.36,1.78082586]
[1641764896854,13.534,142.45,142.36,12.31472586]
[1641764897055,3.0,142.45,142.37,0.26]
[1641764897256,23.24418429,142.46,142.37,0.51]
[1641764897455,0.26,142.45,142.37,2.29082586]
[1641764897656,0.51,142.45,142.37,2.03082586]
[1641764898061,0.51,142.45,142.37,0.25]
[1641764898254,0.51,142.45,142.37,2.03082586]
[1641764898457,0.51,142.45,142.38,0.25]
[1641764899458,0.51,142.45,142.37,1.78082586]
[1641764899657,2.264,142.45,142.35,1.78082586]
[1641764899858,15.798,142.45,142.34,14.14251884]
[1641764900060,15.798,142.45,142.34,12.2904]
[1641764900480,15.798,142.45,142.34,14.07122586]
[1641764900682,15.798,142.45,142.35,0.25]
[1641764900883,15.798,142.45,142.35,10.7845]
[1641764900884,14.044,142.45,142.35,10.7845]
[1641764901082,14.044,142.45,142.35,12.56532586]
[1641764901482,14.044,142.45,142.35,10.5345]
[1641764901784,1.754,142.44,142.35,10.5345]
[1641764901983,0.51,142.43,142.35,10.5345]
[1641764902887,0.51,142.43,142.33,20.4758]
[1641764903183,3.51,142.43,142.33,20.4758]
[1641764903383,3.51,142.43,142.33,22.25662586]
[1641764903583,0.51,142.43,142.33,22.25662586]
[1641764903883,3.0,142.42,142.34,10.7852]
[1641764904283,0.26,142.41,142.35,1.78082586]
[1641764904484,0.26,142.41,142.36,0.25]
[1641764904984,0.51,142.42,142.36,0.25]
[1641764905384,0.25,142.42,142.36,0.25]
[1641764905587,0.51,142.44,142.36,0.25]
[1641764905985,0.51,142.44,142.36,0.51]
[1641764906885,11.0446,142.44,142.36,10.784]
[1641764907085,3.0,142.43,142.34,1.755]
[1641764907287,3.0,142.43,142.33,13.54611884]
[1641764907487,0.51,142.42,142.33,13.54611884]
[1641764907686,0.25,142.42,142.33,15.3269447]
[1641764907987,0.25,142.42,142.35,10.5347]
[1641764908389,0.25,142.43,142.35,10.5347]
[1641764909193,0.25,142.43,142.35,12.31552586]
[1641764909393,0.25,142.43,142.35,10.5347]
[1641764909798,0.25,142.43,142.36,2.004]
[1641764909997,0.25,142.44,142.36,12.5379]
[1641764910198,0.25,142.44,142.36,10.7839]
[1641764910398,0.25,142.44,142.36,0.25]
[1641764910800,0.51,142.44,142.34,1.754]
[1641764911797,11.0447,142.44,142.34,12.2889]
[1641764911997,3.0,142.43,142.34,10.5349]
[1641764912498,0.51,142.42,142.34,10.5349]
[1641764912998,0.25,142.42,142.34,10.5349]
[1641764913497,0.25,142.43,142.34,10.5349]
[1641764913898,10.7855,142.43,142.34,10.5349]
[1641764914297,0.26,142.42,142.34,10.5349]
[1641764915002,3.26,142.42,142.34,10.5349]
[1641764915201,0.25,142.41,142.34,10.5349]
[1641764915603,0.25,142.41,142.33,12.38831884]
[1641764916004,0.25,142.41,142.34,0.25]
[1641764916405,0.25,142.41,142.33,12.38831884]
[1641764916603,27.684836,142.4,142.33,1.85211884]
[1641764917004,3.51,142.39,142.32,1.85211884]
[1641764917204,5.266,142.39,142.32,1.85211884]
[1641764917405,65.0,142.38,142.29,3.70797356]
[1641764917704,65.0,142.38,142.27,350.38295038]
[1641764917705,23.23659842,142.33,142.27,350.38295038]
[1641764917904,0.26,142.32,142.27,350.38295038]
[1641764919132,0.26,142.32,142.26,1.78082586]
[1641764919307,0.26,142.32,142.27,0.25]
[1641764920108,23.23659842,142.33,142.27,0.25]
[1641764920308,0.26,142.32,142.27,0.25]
[1641764920909,0.51,142.32,142.25,9.94]
[1641764921411,0.51,142.32,142.26,1.78082586]
[1641764921606,0.51,142.32,142.24,79.1723]
[1641764921815,3.51,142.32,142.24,79.1723]
[1641764922411,26.8701,142.32,142.22,11.72082586]
[1641764922609,26.8701,142.32,142.22,1.78082586]
[1641764922809,37.4133,142.32,142.22,12.32452586]
[1641764924410,37.4133,142.32,142.2,10.5452]
[1641764924609,39.1693,142.32,142.21,0.25]
[1641764924809,39.1693,142.32,142.18,173.56774967]
[1641764925010,49.1093,142.32,142.18,13.64797356]
[1641764925410,50.89012586,142.32,142.18,3.70797356]
[1641764925611,50.89012586,142.32,142.16,75.8791]
[1641764926512,48.8493,142.32,142.16,88.20812586]
[1641764926744,48.8493,142.32,142.17,0.25]
[1641764927140,48.8493,142.32,142.18,1.78082586]
[1641764927542,48.8493,142.32,142.19,0.25]
[1641764927942,0.26,142.31,142.19,0.25]
[1641764928143,10.5465,142.28,142.19,0.25]
[1641764928343,0.25,142.27,142.19,0.25]
[1641764928546,0.51,142.27,142.19,0.25]
[1641764928942,0.51,142.27,142.19,11.0564]
[1641764929543,10.5465,142.28,142.19,11.0564]
[1641764929743,10.5465,142.28,142.2,1.78082586]
[1641764929944,0.25,142.27,142.21,0.25]
[1641764930244,10.5465,142.28,142.21,0.25]
[1641764930944,0.26,142.27,142.21,0.25]
[1641764931346,26.2479345,142.27,142.21,0.25]
[1641764931545,37.0447345,142.27,142.21,0.25]
[1641764931945,37.0447345,142.27,142.18,10.5468]
[1641764932144,37.0447345,142.27,142.16,87.59992586]
[1641764932345,3.0,142.26,142.17,0.25]
[1641764932748,0.51,142.25,142.17,0.25]
[1641764933449,0.51,142.25,142.17,2.03082586]
[1641764933652,0.25,142.25,142.17,2.03082586]
[1641764933850,26.9355,142.26,142.17,12.57882586]
[1641764934051,23.9355,142.26,142.18,2.017]
[1641764934254,50.1140345,142.27,142.18,2.017]
[1641764934453,50.1140345,142.27,142.19,2.03082586]
[1641764934660,50.1140345,142.27,142.2,1.756]
[1641764934861,0.26,142.26,142.21,0.25]
[1641764935557,0.51,142.27,142.21,0.25]
[1641764936558,0.26,142.27,142.21,0.25]
[1641764936960,0.26,142.27,142.2,0.25]
[1641764937261,0.26,142.27,142.2,10.7956]
[1641764937458,0.26,142.27,142.2,12.83642586]
[1641764937660,3.26,142.28,142.2,10.8056]
[1641764937886,0.51,142.28,142.2,10.8056]
[1641764938260,3.51,142.28,142.18,0.04]
[1641764938559,10.5474,142.26,142.18,10.8466]
[1641764938971,0.25,142.25,142.18,10.8466]
[1641764939358,0.26,142.26,142.18,10.5866]
[1641764939560,0.51,142.26,142.18,10.5866]
[1641764939959,0.51,142.26,142.19,0.25]
[1641764940361,11.0574,142.26,142.19,0.25]
[1641764940762,11.0574,142.26,142.18,0.04]
[1641764940961,3.0,142.25,142.18,0.02]
[1641764941161,3.0,142.25,142.2,0.02]
[1641764941364,24.8074303,142.23,142.2,0.04]
[1641764941565,24.8074303,142.23,142.14,1.756]
[1641764941762,3.51,142.22,142.13,3.70797356]
[1641764941963,28.25,142.22,142.13,5.48879942]
[1641764942165,3.26,142.22,142.13,5.48879942]
[1641764942368,24.8931,142.24,142.14,4.758]
[1641764942763,24.8931,142.24,142.15,1.78082586]
[1641764942964,24.8931,142.24,142.16,1.758]
[1641764943172,48.55535949,142.24,142.16,1.758]
[1641764943364,48.55535949,142.24,142.17,0.25]
[1641764943564,24.8931,142.24,142.17,2.03082586]
[1641764943764,24.8931,142.24,142.18,1.78082586]
[1641764943964,23.2161,142.25,142.19,0.51]
[1641764944166,23.2161,142.25,142.19,0.25]
[1641764944366,23.2161,142.25,142.2,1.78082586]
[1641764946616,10.324,142.28,142.2,1.78082586]
[1641764946821,0.25,142.27,142.2,1.78082586]
[1641764947018,3.25,142.27,142.19,0.25]
[1641764947317,3.25,142.27,142.2,1.78082586]
[1641764947516,3.25,142.27,142.19,0.26]
[1641764947917,0.26,142.26,142.2,1.78082586]
[1641764948319,0.26,142.26,142.19,10.7966]
[1641764948719,0.26,142.26,142.19,12.57742586]
[1641764950723,13.5468,142.27,142.2,0.26]
[1641764950921,84.7485,142.29,142.2,0.26]
[1641764950922,26.2689,142.31,142.2,0.26]
[1641764951121,24.5129,142.31,142.24,10.5427]
[1641764951320,106.5567,142.36,142.24,10.5427]
[1641764951321,104.8007,142.36,142.24,10.5427]
[1641764951521,3.0,142.35,142.25,2.29082586]
[1641764951721,31.22081084,142.34,142.25,2.29082586]
[1641764951924,29.46481084,142.34,142.25,2.29082586]
[1641764952121,13.7923,142.33,142.25,12.83272586]
[1641764952322,13.5423,142.33,142.25,11.0519]
[1641764952522,0.26,142.32,142.25,11.0519]
[1641764952926,0.26,142.32,142.25,0.25]
[1641764953127,35.4013,142.32,142.23,10.793]
[1641764954426,0.25,142.31,142.23,10.793]
[1641764954625,3.25,142.31,142.23,10.793]
[1641764955025,24.8583,142.32,142.24,0.26]
[1641764955227,24.8583,142.32,142.25,10.542]
[1641764955434,24.8583,142.32,142.26,0.25]
[1641764955627,24.5983,142.32,142.26,0.25]
[1641764956026,53.69651084,142.34,142.26,0.25]
[1641764956228,0.25,142.33,142.26,0.25]
[1641764956929,0.25,142.33,142.26,0.51]
[1641764957127,0.25,142.33,142.26,11.0514]
[1641764958027,0.51,142.33,142.26,11.0514]
[1641764958327,0.25,142.33,142.26,11.0514]
[1641764959127,0.25,142.33,142.27,1.78082586]
[1641764959327,0.25,142.33,142.27,10.5402]
[1641764960431,29.46481084,142.34,142.28,11.0498]
[1641764960628,29.46481084,142.34,142.28,10.7998]
[1641764961527,29.46481084,142.34,142.28,10.5398]
[1641764961930,29.46481084,142.34,142.27,1.78082586]
[1641764962133,0.26,142.33,142.28,0.25]
[1641764962833,29.46481084,142.34,142.28,0.25]
[1641764963030,29.46481084,142.34,142.28,0.51]
[1641764963330,29.46481084,142.34,142.28,11.0499]
[1641764963829,12.2953,142.38,142.28,12.83072586]
[1641764964032,98.9964,142.39,142.29,3.0]
[1641764964431,98.9964,142.39,142.3,0.51]
[1641764964634,23.25442743,142.38,142.3,0.51]
[1641764964831,0.25,142.37,142.3,2.04082586]
[1641764965130,2.006,142.37,142.27,1.78082586]
[1641764965331,0.25,142.37,142.27,3.53682586]
[1641764965532,0.25,142.37,142.29,1.78082586]
[1641764965731,24.2802,142.37,142.29,1.78082586]
[1641764965944,0.26,142.36,142.29,1.78082586]
[1641764966132,0.26,142.36,142.28,10.5394]
[1641764966334,0.26,142.36,142.26,13.47682586]
[1641764966533,1.756,142.35,142.26,1.756]
[1641764966833,25.4394,142.35,142.25,73.4074]
[1641764967033,0.51,142.34,142.26,2.03082586]
[1641764967236,23.6834,142.35,142.26,2.03082586]
[1641764967434,23.6834,142.35,142.26,3.78682586]
[1641764967835,0.26,142.34,142.26,3.78682586]
[1641764968039,0.26,142.34,142.27,0.26]
[1641764968239,0.26,142.34,142.27,3.26]
[1641764968438,0.26,142.34,142.28,2.03082586]
[1641764968841,0.26,142.34,142.29,10.5391]
[1641764969142,23.6834,142.35,142.29,10.5391]
[1641764969341,23.6834,142.35,142.29,12.31992586]
[1641764970353,0.25,142.37,142.3,0.25]
[1641764970543,3.25,142.37,142.31,10.5373]
[1641764970743,3.25,142.37,142.31,12.31812586]
[1641764970943,3.25,142.37,142.31,10.5373]
[1641764971143,3.25,142.37,142.3,0.25]
[1641764971342,26.7286,142.37,142.28,2.04082586]
[1641764971544,23.7286,142.37,142.29,10.5392]
[1641764971765,0.26,142.36,142.29,10.5392]
[1641764971966,23.7286,142.37,142.29,10.5392]
[1641764972165,23.7286,142.37,142.3,2.04082586]
[1641764972367,0.26,142.36,142.29,10.5392]
[1641764972764,0.26,142.36,142.3,0.26]
[1641764972966,23.7286,142.37,142.3,0.26]
[1641764973164,23.7286,142.37,142.3,11.0484]
[1641764973365,23.7286,142.37,142.3,10.5384]
[1641764973565,0.26,142.36,142.3,10.5384]
[1641764973765,23.7286,142.37,142.3,10.5384]
[1641764974367,23.7286,142.37,142.31,0.25]
[1641764974569,0.26,142.36,142.31,0.25]
[1641764974772,0.26,142.36,142.28,0.26]
[1641764974973,23.7286,142.37,142.28,0.51]
[1641764975269,23.7286,142.37,142.28,2.29082586]
[1641764975469,23.7286,142.37,142.28,5.04082586]
[1641764975770,23.7286,142.37,142.28,3.26]
[1641764975969,3.0,142.36,142.28,0.26]
[1641764976171,15.2964,142.36,142.28,12.58002586]
[1641764976374,0.51,142.35,142.28,12.58002586]
[1641764976571,0.51,142.35,142.28,10.7992]
[1641764977273,0.51,142.35,142.29,0.25]
[1641764977477,0.25,142.35,142.29,0.25]
[1641764978874,0.25,142.35,142.3,1.78082586]
[1641764979475,0.25,142.35,142.29,10.789]
[1641764979878,0.25,142.35,142.29,12.56982586]
[1641764980078,0.25,142.35,142.29,10.539]
[1641764980778,3.0,142.36,142.29,10.539]
[1641764981076,0.26,142.35,142.28,10.5399]
[1641764981277,0.26,142.35,142.28,10.7999]
[1641764981475,23.4786,142.37,142.28,12.58072586]
[1641764981979,0.26,142.36,142.29,10.7891]
[1641764982378,0.26,142.36,142.3,0.26]
[1641764982580,0.26,142.36,142.29,10.7891]
[1641764985584,11.0502,142.36,142.28,1.78082586]
[1641764985785,14.0502,142.36,142.28,1.78082586]
[1641764986185,14.0502,142.36,142.27,10.5402]
[1641764986386,13.8002,142.36,142.28,0.51]
[1641764986588,13.8002,142.36,142.28,2.016]
[1641764986786,13.8002,142.36,142.28,7.04682586]
[1641764987193,13.8002,142.36,142.28,17.58662586]
[1641764987387,13.8002,142.36,142.28,15.83062586]
[1641764987588,23.0315,142.35,142.28,15.83062586]
[1641764987889,0.26,142.34,142.28,15.83062586]
[1641764988688,23.0315,142.35,142.28,15.83062586]
[1641764989089,23.0315,142.35,142.29,12.295]
[1641764989489,33.79352743,142.38,142.3,0.51]
[1641764989892,3.0,142.37,142.3,2.29082586]
[1641764990090,33.79352743,142.38,142.3,12.82912586]
[1641764990892,0.26,142.37,142.3,12.82912586]
[1641764991591,23.25442743,142.38,142.3,12.82912586]
[1641764991795,23.8824,142.39,142.3,12.82912586]
[1641764991991,23.8824,142.39,142.31,3.0]
[1641764992191,23.8824,142.39,142.34,10.5354]
[1641764992391,23.8824,142.39,142.35,0.26]
[1641764992592,23.8824,142.39,142.34,10.5354]
[1641764992793,53.31266215,142.39,142.34,10.5354]
[1641764993195,53.31266215,142.39,142.35,0.25]
[1641764993895,29.43026215,142.39,142.35,0.25]
[1641764994194,29.43026215,142.39,142.34,10.5354]
[1641764994395,29.43026215,142.39,142.32,14.07112586]
[1641764994595,29.43026215,142.39,142.33,0.51]
[1641764994797,29.43026215,142.39,142.33,0.26]
[1641764995398,29.43026215,142.39,142.33,10.7962]
[1641764995698,29.43026215,142.39,142.34,1.756]
[1641764995895,45.4368,142.42,142.35,0.51]
[1641764996096,45.4368,142.42,142.34,2.03082586]
[1641764996402,45.4368,142.42,142.35,0.26]
[1641764996597,0.26,142.41,142.35,10.7945]
[1641764996996,31.09870637,142.41,142.36,0.25]
[1641765000434,31.09870637,142.41,142.35,10.7945]
[1641765000732,31.09870637,142.41,142.33,10.5355]
[1641765000936,23.1655,142.4,142.33,10.5355]
[1641765001134,23.1655,142.4,142.34,0.25]
[1641765001135,22.9155,142.4,142.34,0.25]
[1641765001335,0.26,142.39,142.34,0.25]
[1641765001535,0.26,142.39,142.33,10.5355]
[1641765002934,0.51,142.39,142.33,10.5355]
[1641765003734,0.26,142.39,142.31,14.07402586]
[1641765003935,0.26,142.39,142.32,0.26]
[1641765004136,0.26,142.39,142.32,0.51]
[1641765004337,0.51,142.39,142.32,0.51]
[1641765004736,0.51,142.39,142.32,11.0467]
[1641765004937,0.51,142.39,142.32,10.7867]
[1641765005136,11.0477,142.39,142.32,0.25]
[1641765005337,11.0477,142.39,142.31,0.25]
[1641765005540,11.0477,142.39,142.3,78.7817]
[1641765006944,11.0477,142.39,142.3,89.3197]
[1641765007142,11.0477,142.39,142.3,91.10052586]
[1641765007741,0.51,142.39,142.3,91.10052586]
[1641765007941,0.51,142.39,142.31,0.26]
[1641765008142,3.51,142.39,142.32,10.5363]
[1641765008641,3.51,142.39,142.31,1.756]
[1641765008844,3.51,142.39,142.32,0.25]
[1641765009041,3.51,142.39,142.3,78.7817]
[1641765009845,14.0478,142.39,142.31,10.7875]
[1641765012951,14.0478,142.39,142.31,10.5375]
[1641765016154,11.0478,142.39,142.31,10.5375]
[1641765016877,0.25,142.39,142.32,0.26]
[1641765017376,0.25,142.39,142.32,10.5367]
[1641765018076,0.25,142.39,142.33,0.26]
[1641765018277,0.25,142.39,142.32,10.5367]
[1641765018476,0.25,142.39,142.33,0.26]
[1641765018677,0.25,142.39,142.32,10.5367]
[1641765019077,10.7878,142.39,142.3,89.3195]
[1641765019278,10.7878,142.39,142.31,0.51]
[1641765019879,0.26,142.38,142.31,0.51]
[1641765020082,0.26,142.38,142.31,11.0476]
[1641765020279,0.26,142.38,142.3,78.7817]
[1641765020280,10.7986,142.38,142.3,78.7817]
[1641765020479,24.4639,142.37,142.3,78.7817]
[1641765020880,0.26,142.36,142.3,78.7817]
[1641765021080,0.26,142.36,142.3,80.56252586]
[1641765021281,0.26,142.36,142.3,91.10102586]
[1641765024394,0.26,142.36,142.31,0.25]
[1641765024595,0.26,142.36,142.31,10.7877]
[1641765024992,0.26,142.36,142.31,12.56852586]
[1641765025192,27.5285,142.4,142.31,12.56852586]
[1641765025794,10.5379,142.39,142.31,12.56852586]
[1641765025993,0.26,142.38,142.31,12.56852586]
[1641765027596,0.26,142.38,142.31,10.7877]
[1641765028598,0.26,142.38,142.31,10.5377]
[1641765029900,0.26,142.38,142.29,22.25932586]
[1641765029901,11.0485,142.38,142.29,22.25932586]
[1641765030102,24.6965,142.37,142.29,12.31932586]
[1641765030502,31.72456977,142.35,142.29,12.31932586]
[1641765030902,0.26,142.34,142.29,12.31932586]
[1641765031904,0.51,142.34,142.26,1.78082586]
[1641765032107,24.4219,142.34,142.26,1.78082586]
[1641765032305,24.4219,142.34,142.25,3.70797356]
[1641765032503,3.0,142.33,142.25,3.70797356]
[1641765032706,3.0,142.33,142.26,1.78082586]
[1641765032904,0.26,142.32,142.26,1.78082586]
[1641765033104,0.26,142.32,142.27,0.25]
[1641765033305,0.26,142.32,142.26,1.78082586]
[1641765033505,0.26,142.32,142.27,1.78082586]
[1641765033705,24.187,142.32,142.27,1.78082586]
[1641765033906,24.187,142.32,142.28,0.25]
[1641765034105,31.72456977,142.35,142.28,0.25]
[1641765034305,54.76056977,142.35,142.29,1.78082586]
[1641765034510,3.0,142.34,142.29,1.78082586]
[1641765034706,3.0,142.34,142.3,0.25]
[1641765035108,54.76056977,142.35,142.3,0.25]
[1641765035310,0.26,142.33,142.3,0.25]
[1641765035530,0.26,142.34,142.3,0.25]
[1641765035735,0.26,142.34,142.28,2.006]
[1641765036135,0.26,142.34,142.28,0.25]
[1641765036336,0.26,142.34,142.27,0.25]
[1641765036534,0.26,142.34,142.28,1.756]
[1641765036735,0.26,142.34,142.27,10.5407]
[1641765037137,0.51,142.34,142.27,10.5407]
[1641765038236,0.51,142.34,142.26,3.76971235]
[1641765038437,0.51,142.34,142.27,0.25]
[1641765039636,3.51,142.34,142.27,2.03082586]
[1641765039837,14.0518,142.34,142.27,1.78082586]
[1641765040037,14.0518,142.34,142.26,12.53008649]
[1641765040239,23.9463,142.33,142.26,12.53008649]
[1641765040441,0.26,142.32,142.27,0.25]
[1641765045544,23.9463,142.33,142.27,0.25]
[1641765045746,3.0,142.34,142.27,12.83142586]
[1641765046043,55.11786977,142.35,142.28,0.25]
[1641765046444,0.26,142.34,142.28,0.25]
[1641765046678,23.3933,142.35,142.28,2.03082586]
[1641765046944,10.5519,142.37,142.29,0.26]
[1641765047146,100.10236867,142.39,142.29,0.26]
[1641765047445,98.1242,142.39,142.3,1.78082586]
[1641765047644,27.67788452,142.38,142.29,4.00488649]
[1641765047844,23.0806,142.37,142.3,0.25]
[1641765048747,23.0806,142.37,142.3,10.7879]
[1641765048946,0.26,142.36,142.3,10.7879]
[1641765049948,0.26,142.36,142.3,10.5379]
[1641765050150,0.51,142.36,142.3,10.5379]
[1641765050350,0.26,142.36,142.29,1.756]
[1641765050549,0.26,142.36,142.29,12.2952]
[1641765050753,0.51,142.36,142.29,1.756]
[1641765051550,5.266,142.36,142.26,1.98888649]
[1641765051753,24.394,142.35,142.26,1.98888649]
[1641765051951,2.266,142.34,142.26,1.98888649]
[1641765052151,5.266,142.34,142.26,1.98888649]
[1641765052352,5.266,142.34,142.25,1.98888649]
[1641765052752,24.45989821,142.32,142.25,1.98888649]
[1641765052957,24.7561,142.31,142.25,1.98888649]
[1641765053151,10.5446,142.3,142.23,76.21918649]
[1641765053354,23.4861,142.29,142.24,0.25]
[1641765053953,3.26,142.31,142.23,78.00001235]
[1641765054186,28.2292,142.31,142.23,78.00001235]
[1641765054358,0.25,142.3,142.24,0.26]
[1641765054554,27.7292,142.31,142.24,0.26]
[1641765054754,0.51,142.3,142.24,0.26]
[1641765054956,0.26,142.3,142.24,0.26]
[1641765055157,0.51,142.3,142.24,0.26]
[1641765055360,0.51,142.3,142.24,0.51]
[1641765056660,0.26,142.3,142.24,0.51]
[1641765057058,0.26,142.3,142.24,2.29082586]
[1641765057860,0.26,142.3,142.24,12.83372586]
[1641765058057,0.26,142.31,142.24,12.83372586]
[1641765058959,0.26,142.31,142.25,1.98888649]
[1641765059362,0.26,142.31,142.26,0.25]
[1641765061067,23.8722,142.32,142.26,0.51]
[1641765061270,23.8722,142.32,142.26,2.29082586]
[1641765061471,23.8722,142.32,142.26,1.78082586]
[1641765061695,23.8722,142.32,142.25,1.98888649]
[1641765061696,0.51,142.31,142.25,1.98888649]
[1641765062098,23.33958626,142.31,142.23,1.98888649]
[1641765062299,22.6057,142.3,142.23,2.23888649]
[1641765062497,0.26,142.29,142.23,2.23888649]
[1641765062698,0.26,142.29,142.23,0.25]
[1641765064599,11.0554,142.29,142.23,0.25]
[1641765064800,14.0554,142.29,142.23,0.25]
[1641765065604,22.9949,142.28,142.23,0.25]
[1641765066003,0.26,142.27,142.23,0.25]
[1641765066203,0.26,142.27,142.22,0.25]
[1641765067903,0.26,142.27,142.21,10.5451]
[1641765068505,0.26,142.27,142.21,12.32592586]
[1641765068703,0.26,142.27,142.21,10.5451]
[1641765069305,0.26,142.27,142.22,0.25]
[1641765069505,0.26,142.27,142.22,2.03082586]
[1641765069706,0.26,142.27,142.22,0.25]
[1641765069904,0.26,142.27,142.22,10.7944]
[1641765070105,0.26,142.27,142.22,12.57522586]
[1641765070305,0.26,142.28,142.22,12.57522586]
[1641765070708,3.26,142.3,142.22,12.57522586]
[1641765071111,3.0,142.3,142.22,12.57522586]
[1641765071309,33.37348626,142.31,142.23,10.803]
[1641765071509,33.37348626,142.31,142.24,0.25]
[1641765072110,23.8189,142.3,142.24,0.25]
[1641765073512,23.8189,142.3,142.24,3.25]
[1641765073711,23.8189,142.3,142.25,0.26]
[1641765078021,0.25,142.29,142.25,0.26]
[1641765078221,23.8189,142.3,142.25,0.26]
[1641765078421,23.8189,142.3,142.23,11.0536]
[1641765079623,23.8189,142.3,142.23,12.83442586]
[1641765080449,135.23716943,142.33,142.23,14.82331235]
[1641765080645,61.22086943,142.33,142.23,24.76331235]
[1641765080844,50.65116943,142.33,142.23,24.76331235]
[1641765081045,50.65116943,142.33,142.25,1.98888649]
[1641765081246,50.65116943,142.33,142.26,10.541]
[1641765081447,22.709,142.32,142.26,2.04082586]
[1641765081646,23.219,142.32,142.26,0.26]
[1641765081854,22.969,142.32,142.25,1.98888649]
[1641765082548,22.969,142.32,142.23,13.70971235]
[1641765082750,22.969,142.32,142.24,0.26]
[1641765082946,22.969,142.32,142.24,0.51]
[1641765083146,0.25,142.31,142.24,13.04178649]
[1641765083548,0.25,142.31,142.24,2.49888649]
[1641765083947,0.25,142.31,142.24,0.51]
[1641765084148,10.7934,142.31,142.24,0.51]
[1641765084349,10.5434,142.31,142.24,0.25]
[1641765084548,10.5434,142.31,142.24,0.51]
[1641765084751,23.4805,142.3,142.24,2.29082586]
[1641765085149,23.4805,142.3,142.24,0.51]
[1641765085750,23.4805,142.3,142.24,12.83372586]
[1641765086957,50.65116943,142.33,142.24,12.83372586]
[1641765087652,61.19316943,142.33,142.24,12.83372586]
[1641765087852,0.25,142.32,142.24,14.82261235]
[1641765088254,0.51,142.32,142.24,14.82261235]
[1641765088453,24.99,142.32,142.24,13.04178649]
[1641765088854,35.5328,142.32,142.24,11.0529]
[1641765089556,35.0228,142.32,142.24,12.83372586]
[1641765089955,24.48,142.32,142.24,12.83372586]
[1641765090155,24.48,142.32,142.24,14.82261235]
[1641765091153,24.48,142.32,142.25,1.98888649]
[1641765091353,24.48,142.32,142.26,0.25]
[1641765091554,24.48,142.32,142.26,0.51]
[1641765091754,24.48,142.32,142.26,0.26]
[1641765091963,24.48,142.32,142.25,12.53078649]
[1641765092161,0.25,142.31,142.25,1.98888649]
[1641765092361,0.51,142.31,142.25,1.98888649]
[1641765092558,0.26,142.31,142.23,14.31331235]